[Event "Early-Titled-Tuesday-Blitz-April-23-2024"]
[Site "Chess.com"]
[Date "2024.04.23"]
[Round "11"]
[White "joshdaruca"]
[Black "Iskusnyh"]
[Result "1/2-1/2"]
[WhiteElo "2745"]
[BlackElo "2647"]
[TimeControl "180+1"]
[EndTime "10:11:28 PDT"]
[Termination "Game drawn by repetition"]

1. e4 {[%clk 0:02:30.9]} 1... e6 {[%clk 0:02:57.7]} 2. d4 {[%clk 0:02:30]} 2...
d5 {[%clk 0:02:58]} 3. Nc3 {[%clk 0:02:30.9]} 3... Nf6 {[%clk 0:02:57.3]} 4. e5
{[%clk 0:02:30.9]} 4... Nfd7 {[%clk 0:02:57]} 5. f4 {[%clk 0:02:31.8]} 5... c5
{[%clk 0:02:57.4]} 6. Nf3 {[%clk 0:02:32.7]} 6... Nc6 {[%clk 0:02:57.7]} 7. Be3
{[%clk 0:02:33.2]} 7... Rb8 {[%clk 0:02:57.1]} 8. Qd2 {[%clk 0:02:31.4]} 8...
Qa5 {[%clk 0:02:57.3]} 9. Bd3 {[%clk 0:02:12.8]} 9... b5 {[%clk 0:02:45.1]} 10.
O-O {[%clk 0:02:10.8]} 10... b4 {[%clk 0:02:41.8]} 11. Nd1 {[%clk 0:02:10.6]}
11... cxd4 {[%clk 0:02:38.5]} 12. Nxd4 {[%clk 0:02:09.9]} 12... Nxd4 {[%clk
0:02:37.9]} 13. Bxd4 {[%clk 0:02:10.8]} 13... Bc5 {[%clk 0:02:26.5]} 14. Bf2
{[%clk 0:01:46.4]} 14... Ba6 {[%clk 0:02:12]} 15. a3 {[%clk 0:01:30.4]} 15...
Bxd3 {[%clk 0:01:55.8]} 16. cxd3 {[%clk 0:01:19.5]} 16... Bxf2+ {[%clk
0:01:28.7]} 17. Rxf2 {[%clk 0:01:14.4]} 17... O-O {[%clk 0:01:25.3]} 18. d4
{[%clk 0:01:14.2]} 18... f6 {[%clk 0:00:49.4]} 19. Ne3 {[%clk 0:01:05.9]} 19...
fxe5 {[%clk 0:00:49.1]} 20. fxe5 {[%clk 0:01:06.4]} 20... Rxf2 {[%clk
0:00:48.6]} 21. Kxf2 {[%clk 0:01:05.2]} 21... Qd8 {[%clk 0:00:27.8]} 22. axb4
{[%clk 0:01:04.5]} 22... Qf8+ {[%clk 0:00:24.6]} 23. Kg1 {[%clk 0:01:03.3]}
23... Qxb4 {[%clk 0:00:19.5]} 24. Qxb4 {[%clk 0:01:02.1]} 24... Rxb4 {[%clk
0:00:20]} 25. Rxa7 {[%clk 0:01:02.8]} 25... Nf8 {[%clk 0:00:20.5]} 26. Nc2
{[%clk 0:00:44.1]} 26... Rxb2 {[%clk 0:00:19.6]} 27. Rc7 {[%clk 0:00:44.8]}
27... h5 {[%clk 0:00:17.7]} 28. Kf2 {[%clk 0:00:42.3]} 28... Ng6 {[%clk
0:00:17.4]} 29. g3 {[%clk 0:00:40.6]} 29... h4 {[%clk 0:00:17.1]} 30. Kf3 {[%clk
0:00:38.9]} 30... Kf8 {[%clk 0:00:15.3]} 31. Kg4 {[%clk 0:00:38.6]} 31... hxg3
{[%clk 0:00:14.9]} 32. hxg3 {[%clk 0:00:38.5]} 32... Ne7 {[%clk 0:00:15.4]} 33.
Kg5 {[%clk 0:00:32.2]} 33... Rb3 {[%clk 0:00:13.2]} 34. g4 {[%clk 0:00:32.1]}
34... Rd3 {[%clk 0:00:12.2]} 35. Rb7 {[%clk 0:00:06.6]} 35... Rd2 {[%clk
0:00:11.9]} 36. Rc7 {[%clk 0:00:05.2]} 36... Rd3 {[%clk 0:00:11.9]} 37. Kf4
{[%clk 0:00:04.3]} 37... Ng6+ {[%clk 0:00:10.8]} 38. Kg5 {[%clk 0:00:05]} 38...
Ne7 {[%clk 0:00:10.8]} 1/2-1/2

[Event "Early-Titled-Tuesday-Blitz-April-23-2024"]
[Site "Chess.com"]
[Date "2024.04.23"]
[Round "11"]
[White "Seochesspie"]
[Black "Incognito_Knight"]
[Result "1-0"]
[WhiteElo "2911"]
[BlackElo "2756"]
[TimeControl "180+1"]
[EndTime "10:11:30 PDT"]
[Termination "Seochesspie won on time"]

1. d4 {[%clk 0:03:00.9]} 1... Nf6 {[%clk 0:02:55.6]} 2. c4 {[%clk 0:03:01]} 2...
c5 {[%clk 0:02:53.5]} 3. Nf3 {[%clk 0:03:00.9]} 3... cxd4 {[%clk 0:02:48.8]} 4.
Nxd4 {[%clk 0:03:01.3]} 4... a6 {[%clk 0:02:47.9]} 5. Nc3 {[%clk 0:02:56.2]}
5... e6 {[%clk 0:02:48.1]} 6. g3 {[%clk 0:02:51]} 6... d5 {[%clk 0:02:22]} 7.
cxd5 {[%clk 0:02:51]} 7... Nxd5 {[%clk 0:02:20.4]} 8. Qb3 {[%clk 0:02:50.5]}
8... Nxc3 {[%clk 0:02:15.6]} 9. bxc3 {[%clk 0:02:40]} 9... e5 {[%clk 0:02:11]}
10. Nf3 {[%clk 0:02:31.7]} 10... Be6 {[%clk 0:02:03.5]} 11. Qxb7 {[%clk
0:02:22.9]} 11... Bd5 {[%clk 0:02:03.4]} 12. Qb1 {[%clk 0:02:19.2]} 12... Nc6
{[%clk 0:01:47.9]} 13. Bg2 {[%clk 0:02:18.9]} 13... Be7 {[%clk 0:01:17.7]} 14.
O-O {[%clk 0:02:16.7]} 14... e4 {[%clk 0:00:48.4]} 15. Nd4 {[%clk 0:02:01.7]}
15... Nxd4 {[%clk 0:00:48]} 16. cxd4 {[%clk 0:02:02.6]} 16... f5 {[%clk
0:00:47.4]} 17. Bf4 {[%clk 0:01:58.1]} 17... O-O {[%clk 0:00:46.6]} 18. Be5
{[%clk 0:01:54.8]} 18... Bf6 {[%clk 0:00:37.9]} 19. Bxf6 {[%clk 0:01:54.9]}
19... Qxf6 {[%clk 0:00:38.6]} 20. e3 {[%clk 0:01:55.4]} 20... Rab8 {[%clk
0:00:34.5]} 21. Qc1 {[%clk 0:01:55.4]} 21... h5 {[%clk 0:00:23.1]} 22. Qc5
{[%clk 0:01:50.3]} 22... Bf7 {[%clk 0:00:21.1]} 23. Rfc1 {[%clk 0:01:47.5]}
23... h4 {[%clk 0:00:19.5]} 24. Qc6 {[%clk 0:01:47]} 24... hxg3 {[%clk
0:00:11.6]} 25. hxg3 {[%clk 0:01:46.4]} 25... Rb6 {[%clk 0:00:03.7]} 26. Qxf6
{[%clk 0:01:45.7]} 26... Rxf6 {[%clk 0:00:04.6]} 27. a4 {[%clk 0:01:43.2]} 27...
Rb8 {[%clk 0:00:03.7]} 28. a5 {[%clk 0:01:42.1]} 28... Rb5 {[%clk 0:00:03.3]}
29. Rc2 {[%clk 0:01:39.9]} 29... Rb4 {[%clk 0:00:03.1]} 30. Bf1 {[%clk
0:01:33.6]} 30... g5 {[%clk 0:00:03.4]} 31. Rc8+ {[%clk 0:01:24.6]} 31... Kg7
{[%clk 0:00:03.6]} 32. Ra8 {[%clk 0:01:25.2]} 32... Bc4 {[%clk 0:00:03.9]} 33.
Bxc4 {[%clk 0:01:20.1]} 33... Rxc4 {[%clk 0:00:04.8]} 34. Rb1 {[%clk 0:01:19.3]}
34... Ra4 {[%clk 0:00:05.1]} 35. Rb7+ {[%clk 0:01:10.2]} 35... Kg6 {[%clk
0:00:05.5]} 36. Rg8+ {[%clk 0:01:10.1]} 36... Kh6 {[%clk 0:00:06]} 37. Rb6
{[%clk 0:00:54.4]} 37... Rxb6 {[%clk 0:00:04.6]} 38. axb6 {[%clk 0:00:55.3]}
38... Rb4 {[%clk 0:00:05]} 39. Rb8 {[%clk 0:00:55.6]} 39... a5 {[%clk
0:00:03.7]} 40. b7 {[%clk 0:00:52.5]} 40... Kg7 {[%clk 0:00:04.1]} 41. Kg2
{[%clk 0:00:52.4]} 41... a4 {[%clk 0:00:04.2]} 42. g4 {[%clk 0:00:51.2]} 42...
f4 {[%clk 0:00:03]} 43. Ra8 {[%clk 0:00:42.7]} 43... Rxb7 {[%clk 0:00:03.1]} 44.
Rxa4 {[%clk 0:00:43.3]} 44... Rb2 {[%clk 0:00:03.8]} 45. exf4 {[%clk 0:00:39.9]}
45... gxf4 {[%clk 0:00:04.7]} 46. d5 {[%clk 0:00:40.4]} 46... Re2 {[%clk
0:00:02.4]} 47. Rd4 {[%clk 0:00:36.6]} 47... Kf6 {[%clk 0:00:02.6]} 48. d6
{[%clk 0:00:36.8]} 48... f3+ {[%clk 0:00:02.1]} 49. Kg3 {[%clk 0:00:36.7]} 49...
e3 {[%clk 0:00:02.8]} 50. d7 {[%clk 0:00:34.5]} 1-0

[Event "Early-Titled-Tuesday-Blitz-April-23-2024"]
[Site "Chess.com"]
[Date "2024.04.23"]
[Round "11"]
[White "Larkin-Vladislav"]
[Black "Meri-Arabidze"]
[Result "0-1"]
[WhiteElo "2848"]
[BlackElo "2678"]
[TimeControl "180+1"]
[EndTime "10:11:30 PDT"]
[Termination "Meri-Arabidze won on time"]

1. e4 {[%clk 0:02:58.9]} 1... c5 {[%clk 0:02:59.6]} 2. Nf3 {[%clk 0:02:58.6]}
2... e6 {[%clk 0:03:00.3]} 3. b3 {[%clk 0:02:55.4]} 3... Nc6 {[%clk 0:02:59.3]}
4. Qe2 {[%clk 0:02:52.2]} 4... a6 {[%clk 0:02:58.1]} 5. Bb2 {[%clk 0:02:52.1]}
5... Nf6 {[%clk 0:02:55.6]} 6. e5 {[%clk 0:02:49]} 6... Nd5 {[%clk 0:02:55.7]}
7. g3 {[%clk 0:02:49.2]} 7... Be7 {[%clk 0:02:55.5]} 8. Bg2 {[%clk 0:02:46.7]}
8... b5 {[%clk 0:02:55.4]} 9. c4 {[%clk 0:02:32.5]} 9... Nb6 {[%clk 0:02:47.6]}
10. d4 {[%clk 0:02:19.2]} 10... bxc4 {[%clk 0:02:45.3]} 11. bxc4 {[%clk
0:02:15.9]} 11... cxd4 {[%clk 0:02:31.5]} 12. Nxd4 {[%clk 0:02:14.1]} 12... Bb4+
{[%clk 0:02:26.3]} 13. Nd2 {[%clk 0:02:13.9]} 13... Bxd2+ {[%clk 0:02:16.1]} 14.
Qxd2 {[%clk 0:01:36.3]} 14... Nxc4 {[%clk 0:02:15.6]} 15. Nxc6 {[%clk
0:01:36.4]} 15... Nxd2 {[%clk 0:02:15.7]} 16. Nxd8 {[%clk 0:01:34.5]} 16... Rb8
{[%clk 0:02:15.9]} 17. Bc3 {[%clk 0:01:05.2]} 17... Nc4 {[%clk 0:02:12]} 18. Nb7
{[%clk 0:00:41.1]} 18... Rxb7 {[%clk 0:01:58.4]} 19. Bxb7 {[%clk 0:00:40.8]}
19... Bxb7 {[%clk 0:01:59.3]} 20. O-O {[%clk 0:00:39.2]} 20... O-O {[%clk
0:01:52]} 21. Rab1 {[%clk 0:00:36.7]} 21... Bd5 {[%clk 0:01:50.2]} 22. Rfd1
{[%clk 0:00:31.8]} 22... h5 {[%clk 0:01:46]} 23. Rd4 {[%clk 0:00:29.8]} 23...
Rc8 {[%clk 0:01:42.9]} 24. Rh4 {[%clk 0:00:24.1]} 24... g6 {[%clk 0:01:40.7]}
25. Rd1 {[%clk 0:00:09]} 25... Ne3 {[%clk 0:01:18.5]} 26. fxe3 {[%clk 0:00:06]}
26... Rxc3 {[%clk 0:01:19.1]} 27. Re1 {[%clk 0:00:05]} 27... Rc2 {[%clk
0:01:18.8]} 28. Ra4 {[%clk 0:00:03.9]} 28... Rg2+ {[%clk 0:01:16.7]} 29. Kf1
{[%clk 0:00:04.4]} 29... Rxh2 {[%clk 0:01:16.6]} 30. Re2 {[%clk 0:00:04.2]}
30... Rh1+ {[%clk 0:01:06.1]} 31. Kf2 {[%clk 0:00:04.5]} 31... Kg7 {[%clk
0:00:57.6]} 32. e4 {[%clk 0:00:03]} 32... Bc6 {[%clk 0:00:56.8]} 33. Ra5 {[%clk
0:00:03.3]} 33... Bb5 {[%clk 0:00:55.4]} 34. Rd2 {[%clk 0:00:03.7]} 34... Ra1
{[%clk 0:00:51.7]} 35. Ke3 {[%clk 0:00:02.9]} 35... g5 {[%clk 0:00:50.2]} 36.
Kd4 {[%clk 0:00:01.7]} 36... Rg1 {[%clk 0:00:47.3]} 37. a4 {[%clk 0:00:01.4]}
37... Bc6 {[%clk 0:00:47.9]} 38. Kc5 {[%clk 0:00:01.3]} 38... Rxg3 {[%clk
0:00:47.5]} 39. Rxa6 {[%clk 0:00:01.9]} 39... h4 {[%clk 0:00:47.5]} 40. a5
{[%clk 0:00:02.4]} 40... h3 {[%clk 0:00:47.6]} 41. Rxc6 {[%clk 0:00:01.9]} 41...
Rc3+ {[%clk 0:00:40.5]} 42. Kb5 {[%clk 0:00:02.2]} 42... dxc6+ {[%clk
0:00:39.9]} 43. Kb6 {[%clk 0:00:02.9]} 43... g4 {[%clk 0:00:39.3]} 44. a6 {[%clk
0:00:03.3]} 44... Ra3 {[%clk 0:00:39.4]} 45. a7 {[%clk 0:00:02.6]} 45... Kg6
{[%clk 0:00:35.6]} 46. Rd3 {[%clk 0:00:02.6]} 46... Rxa7 {[%clk 0:00:33.7]} 47.
Kxa7 {[%clk 0:00:02.7]} 47... h2 {[%clk 0:00:33.3]} 0-1

[Event "Early-Titled-Tuesday-Blitz-April-23-2024"]
[Site "Chess.com"]
[Date "2024.04.23"]
[Round "11"]
[White "MarlonJodar"]
[Black "jraosam"]
[Result "0-1"]
[WhiteElo "2267"]
[BlackElo "2024"]
[TimeControl "180+1"]
[EndTime "10:11:32 PDT"]
[Termination "jraosam won on time"]

1. e4 {[%clk 0:02:56.4]} 1... c5 {[%clk 0:02:59.3]} 2. Nf3 {[%clk 0:02:56]} 2...
e6 {[%clk 0:02:59.4]} 3. d4 {[%clk 0:02:56]} 3... cxd4 {[%clk 0:03:00.3]} 4.
Nxd4 {[%clk 0:02:56.7]} 4... a6 {[%clk 0:03:00.9]} 5. c4 {[%clk 0:02:56.3]} 5...
Qc7 {[%clk 0:03:01.5]} 6. a3 {[%clk 0:02:55.9]} 6... Nf6 {[%clk 0:03:02.1]} 7.
Nc3 {[%clk 0:02:56.1]} 7... b6 {[%clk 0:02:58]} 8. Be3 {[%clk 0:02:52.1]} 8...
Bb7 {[%clk 0:02:56.4]} 9. Bd3 {[%clk 0:02:51.9]} 9... d5 {[%clk 0:02:54.7]} 10.
cxd5 {[%clk 0:02:23.6]} 10... exd5 {[%clk 0:02:54.6]} 11. exd5 {[%clk
0:02:21.4]} 11... Nxd5 {[%clk 0:02:52.1]} 12. Nxd5 {[%clk 0:02:21]} 12... Bxd5
{[%clk 0:02:53]} 13. O-O {[%clk 0:02:21]} 13... Bc5 {[%clk 0:02:50.6]} 14. b4
{[%clk 0:02:06]} 14... Bxd4 {[%clk 0:02:48.1]} 15. Bxd4 {[%clk 0:02:06.9]} 15...
Qf4 {[%clk 0:02:21.3]} 16. Re1+ {[%clk 0:02:01]} 16... Kf8 {[%clk 0:02:18.1]}
17. Bxb6 {[%clk 0:01:42.3]} 17... Nd7 {[%clk 0:02:13.6]} 18. Be3 {[%clk
0:01:39.7]} 18... Qh4 {[%clk 0:02:00.4]} 19. Bxa6 {[%clk 0:01:16.8]} 19... Be6
{[%clk 0:01:48.9]} 20. Bb5 {[%clk 0:00:41.4]} 20... Qg4 {[%clk 0:01:39.9]} 21.
h3 {[%clk 0:00:28.9]} 21... Qxd1 {[%clk 0:01:38.3]} 22. Raxd1 {[%clk 0:00:27.2]}
22... Nf6 {[%clk 0:01:38.9]} 23. Bc5+ {[%clk 0:00:26.3]} 23... Kg8 {[%clk
0:01:37.7]} 24. a4 {[%clk 0:00:26.9]} 24... h6 {[%clk 0:01:29.2]} 25. Bc6 {[%clk
0:00:26.7]} 25... Rc8 {[%clk 0:01:26.2]} 26. b5 {[%clk 0:00:26.4]} 26... Bb3
{[%clk 0:01:25.6]} 27. a5 {[%clk 0:00:26.1]} 27... Bxd1 {[%clk 0:01:23.9]} 28.
Rxd1 {[%clk 0:00:25.9]} 28... h5 {[%clk 0:01:13.6]} 29. a6 {[%clk 0:00:25]}
29... Kh7 {[%clk 0:01:12.9]} 30. a7 {[%clk 0:00:23]} 30... Kg6 {[%clk
0:01:09.8]} 31. Ra1 {[%clk 0:00:18.3]} 31... Rxc6 {[%clk 0:01:05.8]} 32. bxc6
{[%clk 0:00:19.2]} 32... Ra8 {[%clk 0:01:05.3]} 33. Bd6 {[%clk 0:00:13.8]} 33...
Ne8 {[%clk 0:01:03.7]} 34. Bh2 {[%clk 0:00:12.3]} 34... Kf6 {[%clk 0:01:00.2]}
35. Bb8 {[%clk 0:00:11.2]} 35... Ke6 {[%clk 0:00:59.1]} 36. Rd1 {[%clk 0:00:11]}
36... Ke7 {[%clk 0:00:49]} 37. Rd7+ {[%clk 0:00:10.3]} 37... Ke6 {[%clk
0:00:49.4]} 38. Rd8 {[%clk 0:00:05.7]} 38... Ke7 {[%clk 0:00:48.9]} 39. c7
{[%clk 0:00:05.1]} 39... Nxc7 {[%clk 0:00:48.9]} 40. Bxc7 {[%clk 0:00:05.1]}
40... Rxa7 {[%clk 0:00:49.5]} 41. Rc8 {[%clk 0:00:02.6]} 41... Kd7 {[%clk
0:00:48.9]} 42. Bb8 {[%clk 0:00:02.8]} 42... Ra1+ {[%clk 0:00:48.1]} 43. Kh2
{[%clk 0:00:03.3]} 43... Kxc8 {[%clk 0:00:48.6]} 44. Be5 {[%clk 0:00:04.1]}
44... Ra2 {[%clk 0:00:47.8]} 45. Bxg7 {[%clk 0:00:02.7]} 45... Rxf2 {[%clk
0:00:47]} 46. Bd4 {[%clk 0:00:02.4]} 46... Rf5 {[%clk 0:00:43.6]} 47. Kg3 {[%clk
0:00:01.6]} 47... Rd5 {[%clk 0:00:44.2]} 48. Be3 {[%clk 0:00:01.5]} 48... Kd7
{[%clk 0:00:44.5]} 49. Kf3 {[%clk 0:00:01.7]} 49... Ke6 {[%clk 0:00:44.3]} 50.
g4 {[%clk 0:00:02.1]} 50... f6 {[%clk 0:00:44.7]} 0-1

[Event "Early-Titled-Tuesday-Blitz-April-23-2024"]
[Site "Chess.com"]
[Date "2024.04.23"]
[Round "11"]
[White "KorolDimitriy75"]
[Black "Slovineanu"]
[Result "1-0"]
[WhiteElo "2339"]
[BlackElo "2474"]
[TimeControl "180+1"]
[EndTime "10:11:37 PDT"]
[Termination "KorolDimitriy75 won by resignation"]

1. d4 {[%clk 0:03:00.9]} 1... Nf6 {[%clk 0:02:59.7]} 2. c4 {[%clk 0:03:01.1]}
2... e6 {[%clk 0:02:59.9]} 3. Nc3 {[%clk 0:03:01.7]} 3... d5 {[%clk 0:03:00.3]}
4. Bg5 {[%clk 0:03:01.2]} 4... c5 {[%clk 0:02:59.3]} 5. cxd5 {[%clk 0:02:58.1]}
5... cxd4 {[%clk 0:02:59.5]} 6. Qxd4 {[%clk 0:02:54.5]} 6... Nc6 {[%clk
0:02:56.9]} 7. Bxf6 {[%clk 0:02:14.4]} 7... Nxd4 {[%clk 0:02:52.1]} 8. Bxd8
{[%clk 0:02:14.1]} 8... Nc2+ {[%clk 0:02:52.2]} 9. Kd2 {[%clk 0:01:50.3]} 9...
Nxa1 {[%clk 0:02:52.2]} 10. Bh4 {[%clk 0:01:35.2]} 10... Bb4 {[%clk 0:02:51]}
11. Nf3 {[%clk 0:01:26]} 11... exd5 {[%clk 0:02:50.2]} 12. e3 {[%clk 0:01:25.7]}
12... f6 {[%clk 0:02:15.8]} 13. Bb5+ {[%clk 0:01:14.5]} 13... Bd7 {[%clk
0:02:06]} 14. Bxd7+ {[%clk 0:01:14]} 14... Kxd7 {[%clk 0:02:06.6]} 15. Rxa1
{[%clk 0:01:14.5]} 15... Rac8 {[%clk 0:02:06.8]} 16. Rc1 {[%clk 0:01:10.6]}
16... Rc4 {[%clk 0:01:59.4]} 17. a3 {[%clk 0:00:52.7]} 17... Ba5 {[%clk
0:01:56.4]} 18. b4 {[%clk 0:00:47.9]} 18... Bd8 {[%clk 0:01:29.1]} 19. Nxd5
{[%clk 0:00:44.7]} 19... Rxc1 {[%clk 0:01:29.3]} 20. Kxc1 {[%clk 0:00:45.6]}
20... h5 {[%clk 0:01:27.1]} 21. h3 {[%clk 0:00:24.1]} 21... g5 {[%clk
0:01:26.1]} 22. Bg3 {[%clk 0:00:23.7]} 22... Ke6 {[%clk 0:01:23.7]} 23. Nc3
{[%clk 0:00:19.8]} 23... h4 {[%clk 0:01:21.6]} 24. Nd4+ {[%clk 0:00:16.3]} 24...
Kf7 {[%clk 0:01:16.4]} 25. Bh2 {[%clk 0:00:14.6]} 25... Kg6 {[%clk 0:01:15.2]}
26. e4 {[%clk 0:00:11.9]} 26... Bb6 {[%clk 0:01:12.9]} 27. Nf5 {[%clk
0:00:08.4]} 27... Bxf2 {[%clk 0:01:08.9]} 28. Kd2 {[%clk 0:00:08]} 28... Rd8+
{[%clk 0:01:04]} 29. Nd5 {[%clk 0:00:06.9]} 29... Bb6 {[%clk 0:00:45.5]} 30. Kd3
{[%clk 0:00:05.4]} 30... g4 {[%clk 0:00:35.5]} 31. hxg4 {[%clk 0:00:04.8]} 31...
Kg5 {[%clk 0:00:35.9]} 32. Bd6 {[%clk 0:00:01.8]} 32... Kxg4 {[%clk 0:00:31.9]}
33. Be7 {[%clk 0:00:02.1]} 33... Rd7 {[%clk 0:00:29.3]} 34. Bxf6 {[%clk
0:00:02.7]} 34... a5 {[%clk 0:00:24.5]} 35. Be5 {[%clk 0:00:01.9]} 35... axb4
{[%clk 0:00:22.7]} 36. axb4 {[%clk 0:00:02.3]} 36... Bf2 {[%clk 0:00:20.9]} 37.
Ke2 {[%clk 0:00:02.3]} 37... Bg3 {[%clk 0:00:20.5]} 38. Nf6+ {[%clk 0:00:02.5]}
38... Kg5 {[%clk 0:00:19.2]} 39. Nxd7 {[%clk 0:00:03.4]} 39... h3 {[%clk
0:00:18.6]} 40. Bxg3 {[%clk 0:00:03.5]} 40... hxg2 {[%clk 0:00:17.6]} 41. Kf2
{[%clk 0:00:03.8]} 41... b5 {[%clk 0:00:17.7]} 42. Kxg2 {[%clk 0:00:03.9]} 42...
Kg4 {[%clk 0:00:18.4]} 43. Nd6 {[%clk 0:00:04]} 43... Kg5 {[%clk 0:00:18.2]} 44.
Nxb5 {[%clk 0:00:04.9]} 44... Kg4 {[%clk 0:00:17.7]} 45. Nc3 {[%clk 0:00:05.8]}
1-0

[Event "Early-Titled-Tuesday-Blitz-April-23-2024"]
[Site "Chess.com"]
[Date "2024.04.23"]
[Round "11"]
[White "MIss_MIaMI"]
[Black "x-7171385435"]
[Result "1/2-1/2"]
[WhiteElo "2331"]
[BlackElo "2163"]
[TimeControl "180+1"]
[EndTime "10:11:39 PDT"]
[Termination "Game drawn by stalemate"]

1. e4 {[%clk 0:03:00.9]} 1... e5 {[%clk 0:02:58.9]} 2. Nf3 {[%clk 0:03:01.3]}
2... Nc6 {[%clk 0:02:59.4]} 3. d4 {[%clk 0:03:01.8]} 3... exd4 {[%clk
0:02:59.6]} 4. c3 {[%clk 0:03:01.7]} 4... dxc3 {[%clk 0:02:57.1]} 5. Bc4 {[%clk
0:03:00.9]} 5... Nf6 {[%clk 0:02:52.5]} 6. e5 {[%clk 0:02:49.3]} 6... d5 {[%clk
0:02:50.4]} 7. Bb3 {[%clk 0:02:31.1]} 7... Ne4 {[%clk 0:02:45.4]} 8. Bxd5 {[%clk
0:02:26.3]} 8... cxb2 {[%clk 0:02:43.4]} 9. Bxb2 {[%clk 0:02:21.7]} 9... Bb4+
{[%clk 0:02:43.6]} 10. Kf1 {[%clk 0:02:22.3]} 10... Nd2+ {[%clk 0:02:29.6]} 11.
Nbxd2 {[%clk 0:02:14.9]} 11... Qxd5 {[%clk 0:02:29.9]} 12. a3 {[%clk 0:01:57.4]}
12... Qd3+ {[%clk 0:01:59.2]} 13. Kg1 {[%clk 0:01:53.3]} 13... Ba5 {[%clk
0:01:55.9]} 14. Rc1 {[%clk 0:01:29.8]} 14... Bg4 {[%clk 0:01:54.5]} 15. Qf1
{[%clk 0:01:20.4]} 15... O-O-O {[%clk 0:01:46.2]} 16. Qxd3 {[%clk 0:01:19.1]}
16... Rxd3 {[%clk 0:01:46.5]} 17. Nc4 {[%clk 0:01:18.6]} 17... Rhd8 {[%clk
0:01:31.5]} 18. h3 {[%clk 0:01:04.3]} 18... Bxf3 {[%clk 0:00:55.7]} 19. gxf3
{[%clk 0:01:05.2]} 19... Rxf3 {[%clk 0:00:54]} 20. Kg2 {[%clk 0:00:59]} 20...
Rf5 {[%clk 0:00:47.8]} 21. Ne3 {[%clk 0:00:53.9]} 21... Rg5+ {[%clk 0:00:42.7]}
22. Kf3 {[%clk 0:00:37]} 22... Rd2 {[%clk 0:00:39.5]} 23. Kf4 {[%clk 0:00:28.6]}
23... h6 {[%clk 0:00:33.4]} 24. h4 {[%clk 0:00:27.1]} 24... Rxf2+ {[%clk
0:00:26]} 25. Ke4 {[%clk 0:00:25]} 25... Rg3 {[%clk 0:00:20.5]} 26. Bc3 {[%clk
0:00:17.7]} 26... Re2 {[%clk 0:00:15]} 27. Bxa5 {[%clk 0:00:09.1]} 27... Rexe3+
{[%clk 0:00:14.9]} 28. Kf4 {[%clk 0:00:09.8]} 28... Rgf3+ {[%clk 0:00:14.5]} 29.
Kg4 {[%clk 0:00:09.9]} 29... Nxa5 {[%clk 0:00:14.1]} 30. Rc5 {[%clk 0:00:05.2]}
30... Nc6 {[%clk 0:00:13.6]} 31. Rd1 {[%clk 0:00:05.8]} 31... Rd3 {[%clk
0:00:12.8]} 32. e6 {[%clk 0:00:03.8]} 32... fxe6 {[%clk 0:00:11.6]} 33. Re1
{[%clk 0:00:03.4]} 33... Rfe3 {[%clk 0:00:11.1]} 34. Rf1 {[%clk 0:00:03.3]}
34... Rd4+ {[%clk 0:00:11.3]} 35. Kh5 {[%clk 0:00:03.7]} 35... Re5+ {[%clk
0:00:07.3]} 36. Rxe5 {[%clk 0:00:04.2]} 36... Nxe5 {[%clk 0:00:08.2]} 37. a4
{[%clk 0:00:03.4]} 37... Rxa4 {[%clk 0:00:07.9]} 38. Rf8+ {[%clk 0:00:03]} 38...
Kd7 {[%clk 0:00:07.9]} 39. Rd8+ {[%clk 0:00:03.7]} 39... Kxd8 {[%clk 0:00:08.1]}
1/2-1/2

[Event "Early-Titled-Tuesday-Blitz-April-23-2024"]
[Site "Chess.com"]
[Date "2024.04.23"]
[Round "11"]
[White "Cipy77"]
[Black "AlainBruxelles"]
[Result "1-0"]
[WhiteElo "2564"]
[BlackElo "2353"]
[TimeControl "180+1"]
[EndTime "10:11:41 PDT"]
[Termination "Cipy77 won by resignation"]

1. a3 {[%clk 0:03:00.9]} 1... g6 {[%clk 0:02:54.6]} 2. c4 {[%clk 0:02:58.6]}
2... Bg7 {[%clk 0:02:54]} 3. Nf3 {[%clk 0:02:59]} 3... Nf6 {[%clk 0:02:50.4]} 4.
e3 {[%clk 0:02:59.2]} 4... O-O {[%clk 0:02:47.4]} 5. b3 {[%clk 0:02:59.3]} 5...
d5 {[%clk 0:02:44.5]} 6. Bb2 {[%clk 0:02:58]} 6... c6 {[%clk 0:02:41.3]} 7. cxd5
{[%clk 0:02:58]} 7... Nxd5 {[%clk 0:02:37.7]} 8. Bxg7 {[%clk 0:02:57.3]} 8...
Kxg7 {[%clk 0:02:38.4]} 9. Be2 {[%clk 0:02:57]} 9... Nd7 {[%clk 0:02:33.8]} 10.
O-O {[%clk 0:02:57]} 10... N7f6 {[%clk 0:02:34.4]} 11. d3 {[%clk 0:02:56.5]}
11... h6 {[%clk 0:02:30.5]} 12. Qc2 {[%clk 0:02:56.6]} 12... e5 {[%clk
0:02:26.2]} 13. Nbd2 {[%clk 0:02:56.9]} 13... Be6 {[%clk 0:02:25.9]} 14. Nxe5
{[%clk 0:02:56.9]} 14... Qc7 {[%clk 0:02:19.2]} 15. Nef3 {[%clk 0:02:55.3]}
15... Rad8 {[%clk 0:02:17.2]} 16. Rfd1 {[%clk 0:02:54.7]} 16... Rfe8 {[%clk
0:02:17]} 17. Bf1 {[%clk 0:02:54]} 17... Bg4 {[%clk 0:02:02.2]} 18. h3 {[%clk
0:02:53.2]} 18... Be6 {[%clk 0:02:02.4]} 19. Nd4 {[%clk 0:02:51.4]} 19... Bc8
{[%clk 0:02:01.6]} 20. b4 {[%clk 0:02:50.7]} 20... Ne7 {[%clk 0:01:53.1]} 21.
Rac1 {[%clk 0:02:49.6]} 21... Nf5 {[%clk 0:01:50.5]} 22. Nxf5+ {[%clk
0:02:48.7]} 22... Bxf5 {[%clk 0:01:50.2]} 23. Nf3 {[%clk 0:02:48.7]} 23... Qd7
{[%clk 0:01:45.5]} 24. Nd4 {[%clk 0:02:41.9]} 24... Nd5 {[%clk 0:01:39.3]} 25.
Nxf5+ {[%clk 0:02:40.6]} 25... gxf5 {[%clk 0:01:36.5]} 26. d4 {[%clk 0:02:38.6]}
26... Nf6 {[%clk 0:01:35.5]} 27. g3 {[%clk 0:02:35]} 27... Ne4 {[%clk
0:01:35.3]} 28. Kh2 {[%clk 0:02:29.8]} 28... Qd6 {[%clk 0:01:34.8]} 29. Bd3
{[%clk 0:02:27]} 29... Re6 {[%clk 0:01:33.8]} 30. Bxe4 {[%clk 0:02:26.3]} 30...
fxe4 {[%clk 0:01:33.4]} 31. Qc5 {[%clk 0:02:23.7]} 31... Qd7 {[%clk 0:01:29.6]}
32. Qxa7 {[%clk 0:02:16.1]} 32... h5 {[%clk 0:01:20.2]} 33. Qc5 {[%clk
0:02:05.5]} 33... h4 {[%clk 0:01:17.2]} 34. Qg5+ {[%clk 0:01:59.1]} 34... Rg6
{[%clk 0:01:17]} 35. Qe5+ {[%clk 0:01:55.2]} 35... f6 {[%clk 0:01:11.5]} 36.
Qxe4 {[%clk 0:01:55.4]} 36... hxg3+ {[%clk 0:01:10.9]} 37. fxg3 {[%clk
0:01:55.8]} 37... Rh8 {[%clk 0:01:10.5]} 38. h4 {[%clk 0:01:51.8]} 38... Rg4
{[%clk 0:01:06.4]} 39. Qf3 {[%clk 0:01:52]} 39... f5 {[%clk 0:00:41.7]} 40. Rc5
{[%clk 0:01:48.8]} 40... Qd6 {[%clk 0:00:41]} 41. Re5 {[%clk 0:01:45]} 41... Qg6
{[%clk 0:00:32]} 42. Qf2 {[%clk 0:00:26.9]} 42... Qf6 {[%clk 0:00:17.5]} 43.
Rxf5 {[%clk 0:00:25.6]} 43... Rhxh4+ {[%clk 0:00:13.1]} 44. gxh4 {[%clk
0:00:25]} 44... Rxh4+ {[%clk 0:00:13.4]} 45. Kg2 {[%clk 0:00:22.8]} 45... Qg6+
{[%clk 0:00:09.5]} 46. Kf1 {[%clk 0:00:22.9]} 46... Rh1+ {[%clk 0:00:07]} 47.
Ke2 {[%clk 0:00:23.2]} 47... Qg4+ {[%clk 0:00:07.4]} 48. Rf3 {[%clk 0:00:21.7]}
48... Rh3 {[%clk 0:00:02]} 49. Rg1 {[%clk 0:00:20.6]} 1-0